Workbook

Sheet Candidate's Details
B2: Name of Financial Institution (FI):
B4: UEN of FI:
B6: Name and contact details (email address & phone no.) of FI's contact person:
B8: Online Exam Date and Time:
B10: Examination Modules:
B11: Capital Markets and Financial Advisory Services (CMFAS) Examinations | D11: Module 1A - Rules & Regulations for Dealing in Securities (SGX-ST Members)
D12: Module 1B - Rules & Regulations for Dealing in Securities (Non-SGX-St Members)
D13: Module 2A - Rules & Regulaions for Tradng in Futures Contracts (SGX-DT Members)
D14: Module 3 - Rules & Regulations for Fund Management
D15: Module 4A - Rules & Regulations for Advising on Corporate Finance
D16: Module 4B - Rules & Regulations for Advising on Corporate Finance (Solely Debt Securities)
D17: Module 6 - Securities Products & Analysis
D18: Mdule 6A - Securities & Futures Product Knowledge
D19: Module 10 - Rules & Regulations for REIT Management, with Product Knowledge & Analysis
B20: Financial Markets Regulatory Practices (FMRP)
B21: Client Advisory Competency Standards - Legislation, Regulation & Industry Codes of Practice (CACS 1)
B22: Client Advisory Competency Standards - Industry and Product Knowledge Assessment Paper 2 (CACS 2)
B25: No. | C25: Candidate's NRIC/ Passport No. | D25: Candidate's Full Name ( As per NRIC/ Passport) | F25: Candidate's individual email address (Same email as stated in the indivdual's portal account) | H25: Exam Module | I25: Is candidate taking the selected exam module on 1st attempt (Y/N)? | J25: Country where candidate is based in | K25: Exam Fee Payable (See "Important Notes" below). Please enter the exact fee payable including GST for each candidate based on the selected exam module) | L25: Name of Billing Organisation (if IBF corporate member rate is applied, please ensure the billing organisation is an IBF member)
B46: Declaration
C47: I have read and understood the IBF Online Examinations Rules and Regulations, IBF's Personal Data Protection Policy, and the General Data Protection Regulation (GDPR) Privacy Policy (if you are an EU resident). I agree to abide by these rules and regulations, and the data protection/privacy policies.
B49: Important Notes:
B50: 1. Fields highlighted in yellow are mandatory fields
B51: 2. Ensure all candidates have set up and activated their IBF Portal Accounts. The Instructions for Setting Up IBF Portal Account can be found in the "Set up portal account" tab
B52: 3. Exam fees will be collected from financial institutions. Please refer to the applicable exam fees for the relevant exam modules set out in the "Examination Fees" tab.
B53: 4. Please password protect this Form before submitting to IBF via email at exams@ibf.org.sg with the subject header "Online Examination Registration".
B54: 5. Please send the password to IBF via email at exams@ibf.org.sg in a separate email with the subject header "Online Examination Registration".

Sheet Set up portal account
A1: Instruction for setting up IBF Portal Account:

Sheet Examination Fees
A1: Examination Fees for Online Examination with effect from September 2022
A3: Module | B3: Revised Fee (before GST)
B4: Member | D4: Non-Member
B5: 1st attempt | C5: Subsequent attempt | D5: 1st attempt | E5: Subsequent attempt
A7: CMFAS M1A | B7: =600*1.08 -> 648 | C7: =520*1.08 -> 561.6 | D7: =680*1.08 -> 734.4 | E7: =600*1.08 -> 648
A8: CMFAS M1B | B8: =600*1.08 -> 648 | C8: =520*1.08 -> 561.6 | D8: =680*1.08 -> 734.4 | E8: =600*1.08 -> 648
A9: CMFAS M2A | B9: =720*1.08 -> 777.6 | C9: =640*1.08 -> 691.2 | D9: =800*1.08 -> 864 | E9: =720*1.08 -> 777.6
A10: CMFAS M3 | B10: =720*1.08 -> 777.6 | C10: =640*1.08 -> 691.2 | D10: =800*1.08 -> 864 | E10: =720*1.08 -> 777.6
A11: CMFAS M4A | B11: =720*1.08 -> 777.6 | C11: =640*1.08 -> 691.2 | D11: =800*1.08 -> 864 | E11: =720*1.08 -> 777.6
A12: CMFAS M4B | B12: =720*1.08 -> 777.6 | C12: =640*1.08 -> 691.2 | D12: =800*1.08 -> 864 | E12: =720*1.08 -> 777.6
A13: CMFAS M6 | B13: =600*1.08 -> 648 | C13: =520*1.08 -> 561.6 | D13: =680*1.08 -> 734.4 | E13: =600*1.08 -> 648
A14: CMFAS M6A | B14: =600*1.08 -> 648 | C14: =520*1.08 -> 561.6 | D14: =680*1.08 -> 734.4 | E14: =600*1.08 -> 648
A15: CMFAS M10 | B15: =1000*1.08 -> 1080 | C15: =840*1.08 -> 907.2 | D15: =1160*1.08 -> 1252.8 | E15: =1000*1.08 -> 1080
A16: CACS Paper 1 | B16: =1320*1.08 -> 1425.6 | C16: =1240*1.08 -> 1339.2 | D16: =1600*1.08 -> 1728 | E16: =1520*1.08 -> 1641.6
A17: CACS Paper 2 | B17: =1320*1.08 -> 1425.6 | C17: =1240*1.08 -> 1339.2 | D17: =1600*1.08 -> 1728 | E17: =1520*1.08 -> 1641.6
A18: FMRP | B18: =600*1.08 -> 648 | C18: =520*1.08 -> 561.6 | D18: =720*1.08 -> 777.6 | E18: =640*1.08 -> 691.2
